Cogmind - Beta 14 @@@ ROGUE MODE // 2024.11.26 @ 05:26:19 Player: KURIIRI Result: Self-destructed Performance ------------- Evolutions (3) 1500 Regions Visited (12) 2400 Robots Destroyed (243) 1215 Value Destroyed (9320) 9320 Prototype IDs (55) 1100 Alien Tech Used (0) 0 Bonus (1663) 1663 TOTAL SCORE: 17198 Bonus ------- High Alert Combat Kills 824 Follower Combat Kills 288 Entered Garrisons 400 Aligned with FarCom 300 Friendly Fire -149 Cogmind --------- Core Integrity 393/700 Matter 297/300 Energy 8/100 System Corruption 24% Temperature Cool (0) Movement Treading (145) Location -7/Factory Parts ------- > --- POWER (1) -------- (None) > --- PROPULSION (4) --- Advanced Treads Advanced Treads Advanced Treads > --- UTILITY (6) ------ Improved Cooling System Large Storage Unit Improved Medium Armor Plating Hacking Suite > --- WEAPON (2) ------- Advanced Plasma Cannon Heavy Mace > --- INVENTORY (15) --- Micro Nuclear Core Aerolev Unit Gravmag System Antigrav System Linear Gravjet Linear Gravjet Improved Antigrav System Improved Antigrav System PSU Rigger Gatling Laser Improved EM Pulse Cannon Mass Driver Advanced EMP Blaster Peak State ------------ > --- POWER ------------ Cooled Deuterium Engine > --- PROPULSION ------- Antigrav System Linear Gravjet Linear Gravjet Improved Antigrav System > --- UTILITY ---------- Large Storage Unit Advanced Targeting Computer Hardened Heavy Armor Plating Hacking Suite Advanced System Shield > --- WEAPON ----------- Improved EM Pulse Cannon Heavy Mace > --- INVENTORY -------- Light Nuclear Core Micro Nuclear Core Advanced Treads Aerolev Unit Gravmag System Improved Antigrav System Improved Cooling System Improved Shield Generator PSU Rigger Gatling Laser Gatling Laser Advanced Plasma Cannon Mass Driver Advanced EMP Blaster Improved Datajack [Rating: 64] Favorites ----------- Power Light Nuclear Core Engine Reinforced Deuterium Engine Power Core Light Nuclear Core Propulsion Light Treads Treads Light Treads Hover Unit Linear Gravjet Utility Large Storage Unit Device Improved Cooling System Storage Large Storage Unit Processor Advanced Targeting Computer Hackware Advanced System Shield Protection Heavy Armor Plating Weapon Advanced Plasma Cannon Energy Gun Heavy EM Shotgun Energy Cannon Advanced Plasma Cannon Ballistic Gun Assault Rifle Ballistic Cannon Assault Cannon Launcher Rocket Launcher Special Weapon Mining Laser Impact Weapon Heavy Mace Special Melee Weapon Datajack Build | -11 -10 -10 -9 -9 -9 -8 -8 -8 -8 -8 -8 -7 ------- Run | Yrd Mat Min Mat Min Exi Min Mat Gar Mat Gar Mat Fac Slots Evolved 6 | . . . 2 . . . 2 . . . . 2 Power . | . . . . . . . . . . . . . Propulsion 2 | . . . 1 . . . . . . . . 1 Utility 4 | . . . 1 . . . 2 . . . . 1 Weapon . | . . . . . . . . . . . . . Parts Attached 265 | 7 5 . 23 3 5 6 53 39 25 10 5 84 Power 22 | 2 . . 2 . 1 1 4 4 1 1 . 6 Engine 9 | 2 . . 1 . . 1 2 1 . . . 2 Core 13 | . . . 1 . 1 . 2 3 1 1 . 4 Reactor . | . . . . . . . . . . . . . Propulsion 57 | 2 3 . 7 . 1 . 11 8 5 2 . 18 Treads 48 | 2 3 . 7 . 1 . 10 8 5 2 . 10 Leg . | . . . . . . . . . . . . . Wheel . | . . . . . . . . . . . . . Hover 9 | . . . . . . . 1 . . . . 8 Flight . | . . . . . . . . . . . . . Utility 102 | 1 2 . 2 1 . . 20 17 15 6 4 34 Device 39 | . 1 . . . . . 9 6 5 2 1 15 Storage 4 | 1 1 . 1 . . . . . . . 1 . Processor 4 | . . . . . . . 2 . . . . 2 Hackware 6 | . . . . . . . 1 1 2 . . 2 Protection 49 | . . . 1 1 . . 8 10 8 4 2 15 Artifact . | . . . . . . . . . . . . . Weapon 84 | 2 . . 12 2 3 5 18 10 4 1 1 26 Energy Gun 17 | 1 . . 2 . . . 5 3 2 . . 4 Energy Cannon 27 | . . . 5 1 1 2 3 2 1 . 1 11 Ballistic Gun 12 | 1 . . 3 . . 2 2 4 . . . . Ballistic Cannon 7 | . . . . . . . 5 . 1 . . 1 Launcher 8 | . . . 1 1 1 1 1 1 . . . 2 Special Weapon 1 | . . . 1 . . . . . . . . . Impact Weapon 8 | . . . . . . . 2 . . 1 . 5 Slashing Weapon . | . . . . . . . . . . . . . Piercing Weapon . | . . . . . . . . . . . . . Special Melee Weapon 4 | . . . . . 1 . . . . . . 3 Unidentified Prototypes 8 | . . . 1 . . . 4 . 1 . . 2 Parts Lost 29 | . . . 2 . . 2 4 13 . 3 . 5 Power 5 | . . . 1 . . . 1 1 . 1 . 1 Propulsion 10 | . . . . . . . 2 5 . 1 . 2 Utility 7 | . . . . . . . 1 4 . . . 2 Weapon 7 | . . . 1 . . 2 . 3 . 1 . . Highest Loss Streak 10 | . . . 2 . . 2 4 10 . 2 . 2 To Critical Strikes . | . . . . . . . . . . . . . Average Slot Usage (%) 93 | . 98 100 95 100 86 99 97 97 91 89 92 90 Engine 3 | . 14 14 2 . . 4 1 . 8 . . 2 Core 5 | . . . 8 11 11 6 7 7 . 8 9 4 Treads 25 | . 28 28 32 33 33 33 26 26 26 26 27 19 Hover 2 | . . . . . . . . . . . . 10 Device 7 | . 12 14 11 11 11 11 11 11 2 . 3 3 Storage 9 | . 14 14 11 11 11 11 9 9 9 9 9 7 Processor 6 | . . . . . . . 7 9 9 9 9 7 Hackware 7 | . . . . . . . 8 7 8 9 9 11 Protection 6 | . . . 6 11 11 11 6 6 8 8 9 6 Energy Gun 4 | . 14 14 2 . . . 5 5 . 5 . 2 Energy Cannon 7 | . . . 15 15 . 14 8 2 7 9 8 5 Ballistic Gun 2 | . 14 14 4 . . 4 . 8 . . . . Ballistic Cannon 1 | . . . . . . . 2 . 7 . . . Impact Weapon 2 | . . . . . . . 1 . . 3 9 4 Peak Build Rating 64 | 6 10 10 18 19 21 23 36 42 52 53 48 64 Average Rating 35 | 4 9 10 15 17 17 21 30 31 45 45 44 51 On Entrance 24 | . 6 10 10 17 19 20 23 35 41 48 43 44 Naked Turns . | . . . . . . . . . . . . . Heaviest Build 65 | 14 30 30 43 37 37 41 43 64 64 53 52 65 Greatest Support 102 | 40 40 40 60 60 60 60 60 70 74 74 74 102 Greatest Overweight (x) 4 | . . . . . . . 4 2 . 1 . 2 Average Overweight (x) . | . . . . . . . . . . . . . Largest Inventory Capacity 15 | 8 15 15 15 15 15 15 15 15 15 15 15 15 Average Capacity 14 | 6 9 15 15 15 15 15 15 15 15 15 15 15 Most Carried 15 | 2 15 15 15 15 15 13 15 15 15 15 15 15 Average Carried 13 | 1 7 15 14 14 14 12 14 13 14 12 13 13 Final Capacity 15 | 8 15 15 15 15 15 15 15 15 15 15 15 15 Final Carried 15 | 2 15 15 15 15 13 13 15 12 15 13 14 13 Class Distribution -------------------- 53% | Mutant 32% | Scavenger-Mutant 13% | Hacker-Mutant Dominant Class ---------------- Mutant | -10/Materials Mutant | -10/Mines Scavenger-Mutant | -9/Materials Scavenger-Mutant | -9/Mines Scavenger-Mutant | -9/Exiles Scavenger-Mutant | -8/Mines Scavenger-Mutant | -8/Materials Scavenger-Mutant | -8/Garrison Mutant | -8/Materials Mutant | -8/Garrison Mutant | -8/Materials Hacker-Mutant | -7/Factory Resources | -11 -10 -10 -9 -9 -9 -8 -8 -8 -8 -8 -8 -7 ----------- Run | Yrd Mat Min Mat Min Exi Min Mat Gar Mat Gar Mat Fac Matter Collected 4635 | 262 168 93 399 47 . 245 777 546 479 389 80 1150 Remotely . | . . . . . . . . . . . . . Salvage Created 10142 | . 633 188 1382 33 . 533 1630 1262 816 610 277 2778 Parts 502 | . 35 10 75 3 . 29 97 67 35 25 8 118 Haulers Intercepted 16 | . 2 . 2 . . . 5 . 6 . . 1 Recyclers Shooed 6 | . . . 3 1 . . . . . . 1 1 Parts Field Recycled . | . . . . . . . . . . . . . Retrieved Matter . | . . . . . . . . . . . . . Parts Self-Destructed . | . . . . . . . . . . . . . Prevented . | . . . . . . . . . . . . . Kills | -11 -10 -10 -9 -9 -9 -8 -8 -8 -8 -8 -8 -7 ------- Run | Yrd Mat Min Mat Min Exi Min Mat Gar Mat Gar Mat Fac Combat Hostiles Destroyed 181 | . 10 3 24 8 . 12 32 20 11 15 3 43 Melee 5 | . . . . . . . . . . . 1 4 Guns 61 | . 10 3 9 . . 1 7 14 . 10 . 7 Cannons 67 | . . . 13 . . 6 15 4 11 2 1 15 AOE 25 | . . . . 8 . 2 5 1 . 1 . 8 Classes Destroyed 18 | . 4 1 6 1 . 1 1 2 . . 1 1 Worker 9 | . . . 1 . . . 2 . . . 1 5 Builder 6 | . . . 2 1 . . 1 . . . . 2 Tunneler 6 | . . 2 . . . 2 . . . . 1 1 Hauler 16 | . 2 . 2 . . . 5 . 6 . . 1 Recycler 8 | . . . 1 . . . . . 1 . 1 5 Mechanic 1 | . . . . . . . . . . . . 1 Operator 8 | . 3 . . . . . 1 . 1 . 1 2 Drone 1 | . . . . . . . . . . . 1 . Watcher 16 | . 2 . 1 . . . 4 . 3 . 1 5 Swarmer 37 | . . . 4 . . 3 10 5 2 6 . 7 Grunt 78 | . 10 3 12 . . 5 13 4 6 8 1 16 Brawler 4 | . . . . . . . 1 . 1 . . 2 Duelist 4 | . . . 2 . . 1 . 1 . . . . Sentry 31 | . . . 7 . . . 8 6 2 . 1 7 Hunter 7 | . . . . . . 3 . . . 1 . 3 Programmer 11 | . . . . . . . . 3 . . . 8 Behemoth 1 | . . . . . . . . 1 . . . . Assembled 8 | . . . . 8 . . . . . . . . Best Kill Streak 7 | . 4 2 5 7 . 3 5 5 3 3 2 5 Combat Bots Only 7 | . 3 2 5 7 . 3 5 5 2 4 1 4 Max Kills in Single Turn 3 | . 1 1 2 2 . 2 3 1 1 1 1 2 Gunslinging . | . . . . . . . . . . . . . Exploded 2 | . . . . 2 . 2 2 1 . 1 . 2 Melee 1 | . . . . . . . . . . . 1 1 Uniques/NPCs Destroyed . | . . . . . . . . . . . . . Combat | -11 -10 -10 -9 -9 -9 -8 -8 -8 -8 -8 -8 -7 -------- Run | Yrd Mat Min Mat Min Exi Min Mat Gar Mat Gar Mat Fac Hostile Shots Fired 782 | . 29 30 82 9 . 47 124 121 38 54 14 234 Missed 229 | . 8 9 24 3 . 13 36 43 5 14 3 71 Damage Taken 9406 | . 303 320 857 264 . 559 1278 1666 549 692 116 2802 Core 1233 | . 122 34 155 37 . 45 112 288 49 72 12 307 Absorbed by Shields 14 | . . . . . . . . . . . . 14 Redirected to Shielding 4 | . . . . . . . 4 . . . . . Regen/Repaired (Parts) 837 | . . . . . . . 96 . 318 . 94 329 Core Remaining (%) 45 | 100 . 37 . . . 40 . . . . 3 . Volleys Fired 648 | . 41 29 93 15 . 29 86 95 87 58 10 105 Largest 2 | . 2 2 2 2 . 2 2 2 2 2 1 2 Hottest 178 | . 60 60 124 112 . 112 113 121 148 148 98 178 Shots Fired 988 | . 82 58 147 17 . 47 146 132 122 75 10 152 Gun 425 | . 82 58 76 . . 5 27 93 1 36 . 47 Cannon 531 | . . . 66 8 . 41 114 38 121 39 10 94 Launcher 27 | . . . . 9 . 1 5 1 . . . 11 Special 5 | . . . 5 . . . . . . . . . Kinetic 286 | . 41 29 61 . . 5 41 44 64 . . 1 Thermal 323 | . . . 19 . . 5 39 33 57 39 10 121 Explosive 10 | . . . . 9 . 1 . . . . . . Electromagnetic 369 | . 41 29 67 8 . 36 66 55 1 36 . 30 Robot Hit Streak 25 | . 8 6 25 2 . 9 19 15 13 14 7 23 Robot Miss Streak 5 | . 3 3 4 3 . 2 5 3 4 2 . 3 Penetration Max 1 | . . . . . . . . 1 . . . . Secondary Targets 3 | . . . 2 . . . . 1 . . . . Max Gunslinging Chain 1 | . . . 1 . . . . 1 . . . . Shots Hit Robots 665 | . 52 26 77 4 4 33 125 81 72 40 15 136 Core Hits 371 | . 28 9 40 16 . 18 84 39 24 28 3 82 Critical Kills 7 | . . . 1 . . . 1 . . . . 5 Critical Parts Destroyed 12 | . . . . . . . 1 . . . 4 7 Critical Strikes 27 | . 1 . 3 . . . 3 . 4 . 4 12 Meltdown 5 | . . . . . . . 1 . . . . 4 Destroy 1 | . . . 1 . . . . . . . . . Blast 4 | . . . . . . . . . 4 . . . Corrupt 4 | . 1 . 2 . . . 1 . . . . . Smash 13 | . . . . . . . 1 . . . 4 8 Melee Attacks 140 | . . . . . 4 . 12 . . 18 25 81 Impact 135 | . . . . . . . 12 . . 18 25 80 Slashing . | . . . . . . . . . . . . . Piercing . | . . . . . . . . . . . . . Sneak Attacks 22 | . . . . . 4 . . . . . 6 12 Combat Hostiles 1 | . . . . . . . . . . . 1 . Follow-up Attacks . | . . . . . . . . . . . . . Damage Inflicted 19716 | . 790 447 1517 750 . 967 3336 2257 2107 1149 823 5573 Guns 5589 | . 717 336 667 . . 46 496 1424 29 729 . 1145 Cannons 8670 | . . . 675 80 . 653 2038 430 2071 218 220 2285 Explosions 2816 | . 73 62 135 670 . 257 573 403 . 149 . 494 Melee 2528 | . . . . . . . 223 . . 53 603 1649 Ramming 113 | . . 49 40 . . 11 6 . 7 . . . Kinetic 3301 | . 288 163 509 . . 46 661 611 991 . . 32 Thermal 6983 | . 73 62 334 . . 226 1020 624 1080 367 220 2977 Explosive 765 | . . . . 670 . 95 . . . . . . Electromagnetic 6026 | . 429 173 634 80 . 589 1426 1022 29 729 . 915 Impact 2528 | . . . . . . . 223 . . 53 603 1649 Slashing . | . . . . . . . . . . . . . Piercing . | . . . . . . . . . . . . . Highest Corruption 24 | . . . 1 1 1 1 . . 1 1 3 24 Average Corruption 2 | . . . 1 1 1 1 . . 1 1 2 3 Corruption Purged . | . . . . . . . . . . . . . Corruption Blocked . | . . . . . . . . . . . . . Effects 125 | . . . 6 2 3 6 . . 7 8 18 75 Message Errors 33 | . . . 4 1 1 2 . . 1 2 8 14 Matter Fused 32 | . . . 1 . 2 1 . . 2 2 4 20 Heat Flow Errors 16 | . . . . . . . . . . 1 4 11 Energy Discharges 15 | . . . . . . 1 . . 2 2 . 10 Parts Fused 1 | . . . . . . . . . . . . 1 Data Loss (minor) 16 | . . . . . . . . . 1 1 . 14 Data Loss (major) 4 | . . . . . . . . . . . 2 2 Misfires 2 | . . . 1 . . . . . . . . 1 Alerts 5 | . . . . . . 2 . . 1 . . 2 Weapon Failures 1 | . . . . 1 . . . . . . . . Overload Shots . | . . . . . . . . . . . . . Overflow Damage 1744 | . . . . 18 . 15 87 12 86 35 381 1110 Projectiles 307 | . . . . 12 . 2 24 . 86 . . 183 Explosions 32 | . . . . 6 . 13 1 12 . . . . Melee 1405 | . . . . . . . 62 . . 35 381 927 Knockbacks 40 | . . . . . . . 27 . 2 1 1 9 Impact 10 | . . . . . . . . . . 1 1 8 Kinetic 22 | . . . . . . . 20 . 2 . . . Secondary 8 | . . . . . . . 7 . . . . 1 Self-Inflicted Damage 368 | . 36 33 . . . . 26 68 . 109 . 96 Shots 13 | . 1 1 . . . . 2 3 . 3 . 3 Rammed 19 | . . 6 6 . . 2 2 . 2 . . 1 Targets Rammed 22 | . . 7 8 . . 2 2 . 2 . . 1 Kicked . | . . . . . . . . . . . . . Crushed 3 | . . 1 2 . . . . . . . . . Highest Temperature 497 | . 15 . 63 30 . 60 319 310 497 445 376 462 Average Temperature 103 | . 10 . 15 13 . 19 53 109 154 152 108 72 Received Heat Transfer 2690 | . 147 165 204 40 . 234 576 312 243 270 18 481 Effects 37 | . . . . . . . . . 22 6 . 9 Shutdowns 5 | . . . . . . . . . 3 . . 2 Energy Bleed 6 | . . . . . . . . . 2 2 . 2 Interference 15 | . . . . . . . . . 9 1 . 5 Matter Decay 3 | . . . . . . . . . 2 1 . . Short Circuit 1 | . . . . . . . . . 1 . . . Damage (minor) 6 | . . . . . . . . . 5 1 . . Damage (major) 1 | . . . . . . . . . . 1 . . Siege Activations . | . . . . . . . . . . . . . Robots Corrupted 33 | . . . 2 . . 3 5 4 . 2 2 15 Combat Hostiles 18 | . . . 2 . . 3 4 1 . 2 1 5 Parts Fried 53 | . . 1 1 . . 4 12 6 . 3 6 20 Impact Corruptions 45 | . . . . . . . 3 . . 1 8 33 Robots Melted 5 | . . . . . . . 1 . . . . 4 Combat Hostiles 5 | . . . . . . . 1 . . . . 4 Parts Melted 28 | . . . 1 . . . 4 2 2 . . 19 Heat Transferred 10959 | . 100 100 607 . . 361 1708 833 1600 450 300 4900 Parts Sabotaged . | . . . . . . . . . . . . . Parts Stolen . | . . . . . . . . . . . . . Parts Stripped . | . . . . . . . . . . . . . Power Chain Reactions 23 | . 2 1 1 . . 1 9 5 . 3 . 1 Alert | -11 -10 -10 -9 -9 -9 -8 -8 -8 -8 -8 -8 -7 ------- Run | Yrd Mat Min Mat Min Exi Min Mat Gar Mat Gar Mat Fac Peak Influence 1105 | . 206 173 826 354 . 169 448 1105 538 902 476 923 Initial 538 | . . 52 66 266 . . 24 274 538 139 439 133 Average 304 | . 114 98 543 313 . 76 160 781 169 476 350 299 Maximum Alert Level 4 | . 1 . 3 1 . . 2 4 2 3 2 3 Low Security (%) 46 | 100 94 100 5 . . 100 73 . 78 8 . 35 Level 1 22 | . 5 . 8 100 . . 18 8 13 35 62 34 Level 2 21 | . . . 73 . . . 7 33 8 36 37 20 Level 3 8 | . . . 12 . . . . 50 . 19 . 9 Level 4 . | . . . . . . . . 7 . . . . Level 5 . | . . . . . . . . . . . . . High Security . | . . . . . . . . . . . . . Max Security . | . . . . . . . . . . . . . Squads Dispatched 38 | . 5 . 4 . . . 5 . 3 . . 21 Investigation 16 | . 2 . 4 . . . . . 1 . . 9 Extermination 6 | . . . . . . . . . . . . 6 Reinforcement 11 | . 3 . . . . . 2 . 2 . . 4 Assault 2 | . . . . . . . . . . . . 2 Garrison 3 | . . . . . . . 3 . . . . . Intercept . | . . . . . . . . . . . . . Searches Triggered . | . . . . . . . . . . . . . Construction Impeded 1 | . . . . . . . . . . . . 1 Haulers Reinforced 1 | . . . . . . . . . . . . 1 Active Scanning Responses . | . . . . . . . . . . . . . Cargo Convoy Interrupts . | . . . . . . . . . . . . . Stealth | -11 -10 -10 -9 -9 -9 -8 -8 -8 -8 -8 -8 -7 --------- Run | Yrd Mat Min Mat Min Exi Min Mat Gar Mat Gar Mat Fac Distress Signals 11 | . 1 2 3 . . . 1 . 1 . 1 2 Communications Jammed . | . . . . . . . . . . . . . Distress Signals . | . . . . . . . . . . . . . Times Spotted 253 | . 17 4 35 18 . 13 34 24 24 16 7 61 Peak Tracking Total 11 | . 2 2 4 11 . 3 6 7 3 4 4 4 Tactical Retreats 16 | . 1 . 4 2 . 1 1 3 . 1 1 2 Traps | -11 -10 -10 -9 -9 -9 -8 -8 -8 -8 -8 -8 -7 ------- Run | Yrd Mat Min Mat Min Exi Min Mat Gar Mat Gar Mat Fac Traps Triggered 15 | . 1 . . . . . 4 2 1 . 1 6 Indirectly 1 | . . . . . . . . . . . . 1 Trap Hack Attempts 50 | . . . . . . . . . . . . 50 Triggered . | . . . . . . . . . . . . . Disarmed 1 | . . . . . . . . . . . . 1 Reprogrammed 13 | . . . . . . . . . . . . 13 Reused 4 | . . . . . . . . . . . . 4 Traps Extracted . | . . . . . . . . . . . . . Installed . | . . . . . . . . . . . . . Triggered 6 | . . . . . . . . . . . . 6 Objects Rigged 48 | . . . . . . . 8 7 9 4 2 18 Exploded 20 | . . . . . . . 2 6 2 2 . 8 Machines | -11 -10 -10 -9 -9 -9 -8 -8 -8 -8 -8 -8 -7 ---------- Run | Yrd Mat Min Mat Min Exi Min Mat Gar Mat Gar Mat Fac Machines Disabled 51 | . 2 7 12 . . 2 3 6 4 6 2 7 Max in Single Turn 2 | . 1 1 2 . . 1 1 2 1 2 1 2 Garrison Access 3 | . . . . . . . . . . . . 3 Garrison Relay 5 | . . . . . . . . 3 . 2 . . Phase Generator 2 | . . . . . . . . 1 . 1 . . Machines Repaired . | . . . . . . . . . . . . . Machines Dismantled . | . . . . . . . . . . . . . Machines Sabotaged . | . . . . . . . . . . . . . Overloaded Fab Kills . | . . . . . . . . . . . . . Hacking | -11 -10 -10 -9 -9 -9 -8 -8 -8 -8 -8 -8 -7 --------- Run | Yrd Mat Min Mat Min Exi Min Mat Gar Mat Gar Mat Fac Machines Accessed 74 | . 7 . 9 . 2 . 11 4 9 . 5 27 Terminals 46 | . 5 . 7 . . . 7 4 5 . 3 15 Fabricators 6 | . . . . . . . . . . . . 6 Repair Stations 7 | . . . . . . . 1 . 2 . 1 3 Recycling Units 5 | . 2 . 2 . . . . . . . . 1 Scanalyzers 5 | . . . . . . . 2 . 1 . 1 1 Garrison Access 3 | . . . . . . . 1 . 1 . . 1 Total Hacks 240 | . 25 . 28 . 2 . 35 6 52 . 13 79 Successful 143 | . 15 . 19 . 2 . 26 1 31 . 8 41 Failed 95 | . 9 . 8 . . . 9 5 21 . 5 38 Catastrophic 15 | . 1 . 3 . . . 1 3 2 . 1 4 Database Lockouts 2 | . 1 . 1 . . . . . . . . . Manual 123 | . 15 . 23 . 1 . 21 1 26 . 3 33 Terminals 160 | . 23 . 26 . . . 25 6 26 . 7 47 Fabricators 14 | . . . . . . . . . . . . 14 Repair Stations 26 | . . . . . . . 3 . 12 . 2 9 Recycling Units 7 | . 2 . 2 . . . . . . . . 3 Scanalyzers 24 | . . . . . . . 6 . 12 . 4 2 Garrison Access 7 | . . . . . . . 1 . 2 . . 4 Terminal Hacks 38 | . 8 . 6 . 2 . 7 1 4 . 1 9 Record 1 | . . . . . 1 . . . . . . . Part Schematic 1 | . . . . . . . . . . . . 1 Robot Analysis 5 | . 2 . 1 . . . 1 . 1 . . . Prototype ID Bank 7 | . 3 . 1 . . . 2 . . . . 1 Machine Index 1 | . . . . . . . . . . . . 1 Terminal Index 2 | . . . 1 . . . 1 . . . . . Garrison Index 1 | . . . . . . . . . . . . 1 Alert Level 6 | . 1 . 1 . . . 2 . 1 . . 1 Unreport Threat 6 | . . . 1 . . . 1 . 2 . . 2 Locate Traps 3 | . 1 . 1 . . . . . . . . 1 Reprogram Traps 1 | . . . . . . . . . . . . 1 Zone Layout 2 | . 1 . . . . . . . . . 1 . Garrison Registry 1 | . . . . . . . . 1 . . . . Derelict Proto ID Bank 1 | . . . . . 1 . . . . . . . Fabricator Hacks 11 | . . . . . . . . . . . . 11 Load Schematic 5 | . . . . . . . . . . . . 5 Build 6 | . . . . . . . . . . . . 6 Repair Station Hacks 19 | . . . . . . . 3 . 8 . 2 6 Scan Component 10 | . . . . . . . 2 . 4 . 1 3 Repair 9 | . . . . . . . 1 . 4 . 1 3 Recycling Unit Hacks . | . . . . . . . . . . . . . Scanalyzer 24 | . . . . . . . 6 . 12 . 4 2 Insert Component 12 | . . . . . . . 3 . 6 . 2 1 Analyze 12 | . . . . . . . 3 . 6 . 2 1 Garrison Access Hacks 3 | . . . . . . . 1 . 1 . . 1 Unlock Access 2 | . . . . . . . 1 . 1 . . . Seal Access 1 | . . . . . . . . . . . . 1 Unauthorized Hacks 48 | . 7 . 13 . . . 9 . 6 . 1 12 Terminals 42 | . 5 . 11 . . . 9 . 6 . 1 10 Track 1 | . . . 1 . . . . . . . . . Assimilate 2 | . . . 1 . . . . . . . . 1 Botnet 13 | . 2 . 3 . . . 2 . 2 . 1 3 Operators 4 | . . . 1 . . . 1 . 1 . . 1 Skim 22 | . 3 . 5 . . . 6 . 3 . . 5 Fabricators . | . . . . . . . . . . . . . Repair Stations . | . . . . . . . . . . . . . Recycling Units 6 | . 2 . 2 . . . . . . . . 2 Reject 1 | . . . . . . . . . . . . 1 Mask 1 | . . . . . . . . . . . . 1 Tunnel 4 | . 2 . 2 . . . . . . . . . Scanalyzers . | . . . . . . . . . . . . . Garrison Access . | . . . . . . . . . . . . . Data Cores Recovered 1 | . . . . . . . . . . . . 1 Used . | . . . . . . . . . . . . . Hacking Detections 61 | . 5 . 7 . . . 10 4 8 . 3 24 Full Trace Events 14 | . 2 . 2 . . . . 1 2 . . 7 Feedback Events 1 | . . . 1 . . . . . . . . . Corruption 1 | . . . 1 . . . . . . . . . Feedback Blocked 1 | . . . . . . . . . . . . 1 Robot Schematics Acquired . | . . . . . . . . . . . . . Robots Built . | . . . . . . . . . . . . . Authchips . | . . . . . . . . . . . . . Time . | . . . . . . . . . . . . . Total Robot Build Rating . | . . . . . . . . . . . . . Part Schematics Acquired 13 | . . . . . . . 3 . 6 . 2 2 Parts Built 11 | . . . . . . . . . . . . 11 Authchips . | . . . . . . . . . . . . . Time 475 | . . . . . . . . . . . . 475 Total Part Build Rating 59 | . . . . . . . . . . . . 59 Parts Repaired 8 | . . . . . . . 1 . 4 . 1 2 Time 359 | . . . . . . . 26 . 176 . 56 101 Parts Recycled . | . . . . . . . . . . . . . Recycled Matter . | . . . . . . . . . . . . . Retrieved Matter . | . . . . . . . . . . . . . Retrieved Components . | . . . . . . . . . . . . . Parts Scanalyzed 12 | . . . . . . . 3 . 6 . 2 1 Part Schematics Acquired 12 | . . . . . . . 3 . 6 . 2 1 Parts Damaged 2 | . . . . . . . . . 2 . . . Bothacking | -11 -10 -10 -9 -9 -9 -8 -8 -8 -8 -8 -8 -7 ------------ Run | Yrd Mat Min Mat Min Exi Min Mat Gar Mat Gar Mat Fac Used RIF Installer . | . . . . . . . . . . . . . Robots Hacked 5 | . . . . . 4 . . . . . . 1 Non-combat 4 | . . . . . 3 . . . . . . 1 Combat 1 | . . . . . 1 . . . . . . . Robot Hacks Applied 5 | . . . . . 4 . . . . . . 1 parse_system 4 | . . . . . 4 . . . . . . . find_chute 1 | . . . . . . . . . . . . 1 Relay Couplers Released 29 | . . . . . . . . 11 . 7 . 11 Machine Destruction 21 | . . . . . . . . 11 . 7 . 3 Programmers 8 | . . . . . . . . . . . . 8 Fabnet Peak Effective % . | . . . . . . . . . . . . . Robots Rewired . | . . . . . . . . . . . . . Allies Hacked . | . . . . . . . . . . . . . Hacks Repelled . | . . . . . . . . . . . . . Allies | -11 -10 -10 -9 -9 -9 -8 -8 -8 -8 -8 -8 -7 -------- Run | Yrd Mat Min Mat Min Exi Min Mat Gar Mat Gar Mat Fac Total Allies 7 | . . 3 1 2 . . . . . . . 1 Largest Group 3 | . . 3 3 3 2 . . . . . . 1 Highest-Rated Group 56 | . . 40 40 56 46 . . . . . . 26 Highest-Rated Ally 31 | . . 16 16 31 31 . . . . . . 26 Total Orders 24 | . . . 3 . . . . . . . . 21 STAY 13 | . . . 2 . . . . . . . . 11 FOLLOW 11 | . . . 1 . . . . . . . . 10 Ally Attacks 59 | . . 6 32 21 . . . . . . . . Total Damage 714 | . . 38 402 274 . . . . . . . . Kills 19 | . . 1 9 9 . . . . . . . . Allies Corrupted . | . . . . . . . . . . . . . Allies Melted . | . . . . . . . . . . . . . Intel | -11 -10 -10 -9 -9 -9 -8 -8 -8 -8 -8 -8 -7 ------- Run | Yrd Mat Min Mat Min Exi Min Mat Gar Mat Gar Mat Fac Robot Analysis Total 5 | . 2 . 1 . . . 1 . 1 . . . Derelict Logs Recovered 1 | . . 1 . . . . . . . . . . Drone Launches . | . . . . . . . . . . . . . Drone Recoveries . | . . . . . . . . . . . . . Exploration | -11 -10 -10 -9 -9 -9 -8 -8 -8 -8 -8 -8 -7 ------------- Run | Yrd Mat Min Mat Min Exi Min Mat Gar Mat Gar Mat Fac Turns Passed 19914 | 87 1151 692 1932 198 478 848 3242 1302 2313 1489 1077 5105 Spaces Moved 10140 | 49 604 365 677 81 287 430 1366 584 845 560 492 3800 Core 2 | 2 . . . . . . . . . . . . Treads 7952 | 47 604 365 677 81 287 430 1364 584 845 560 492 1616 Legs . | . . . . . . . . . . . . . Wheels . | . . . . . . . . . . . . . Hover 2186 | . . . . . . . 2 . . . . 2184 Flight . | . . . . . . . . . . . . . Fastest Speed 38 | 50 160 160 160 160 160 160 160 160 150 150 150 38 Average Speed 132 | 155 160 160 160 160 160 160 160 162 151 150 150 90 Slowest Speed 340 | 160 160 160 160 160 160 160 340 320 160 232 150 232 Overloaded Moves . | . . . . . . . . . . . . . Propulsion Burnouts . | . . . . . . . . . . . . . Robots Hopped . | . . . . . . . . . . . . . Cave-ins Triggered 2 | . . . . . . . . . . . . 2 Exploration Rate (%) 59 | 3 95 83 65 23 63 63 78 75 63 50 36 77 Regions Visited 12 Branch Regions 4 Pre-discovered Areas 13 | . 2 . 5 . 1 . 3 . . . . 2 Known Exits Taken 4 | . . . . . . 1 1 . 1 . 1 . Unknown Exits Taken 6 | 1 1 1 1 1 1 . . . . . . . Scrap Searched 1 | . . 1 . . . . . . . . . . Spaces Dug 77 | . . . 5 . . . 5 3 7 7 14 36 Terrain Destroyed 490 | . 2 6 53 68 . 17 41 89 27 90 15 82 Melee 59 | . . . . . . . 5 . . 7 12 35 Projectile 61 | . . . 5 . . . . 4 27 4 3 18 AOE 370 | . 2 6 48 68 . 17 36 85 . 79 . 29 Terrain Rammed . | . . . . . . . . . . . . . Walls Destroyed . | . . . . . . . . . . . . . Machines Disabled . | . . . . . . . . . . . . . Actions | -11 -10 -10 -9 -9 -9 -8 -8 -8 -8 -8 -8 -7 --------- Run | Yrd Mat Min Mat Min Exi Min Mat Gar Mat Gar Mat Fac Total 15407 | 56 710 412 1361 132 306 540 2240 799 1767 1109 780 5195 Wait 3777 | . 41 10 550 31 . 73 674 42 753 432 235 936 Move 10128 | 48 603 364 676 80 286 429 1365 583 844 559 491 3800 Hop . | . . . . . . . . . . . . . Pick Up 134 | 1 15 1 5 1 4 1 18 16 19 8 6 39 Fast Attach 61 | 6 2 . 2 . . . 14 7 6 1 . 23 Attach 75 | . . . 6 . 2 2 6 7 11 8 4 29 Detach 31 | . . . . . 1 . . 1 5 4 1 19 Swap 129 | 1 3 . 15 3 3 4 33 25 8 1 1 32 Drop 156 | . 5 1 6 2 6 . 22 16 23 8 5 62 Fire 648 | . 41 29 93 15 . 29 86 95 87 58 10 105 Melee 140 | . . . . . 4 . 12 . . 18 25 81 Ram . | . . . . . . . . . . . . . Kick . | . . . . . . . . . . . . . Crush 22 | . . 7 8 . . 2 2 . 2 . . 1 Escape Stasis . | . . . . . . . . . . . . . Rewire 8 | . . . . . . . . . . 8 . . Trap 98 | . . . . . . . 8 7 9 4 2 68 Miscellaneous . | . . . . . . . . . . . . . Route ------- -11/Scrapyard -10/Materials (discovered 4 exits: *Mat x3 / [*Min]) -10/Mines (discovered 3 exits: *Mat x2 / [*Sub]) -9/Materials (discovered 5 exits: *Mat x2 / [*Min x2] / Sto) -9/Mines -9/Exiles -8/Mines -8/Materials (discovered 4 exits: *Fac x3 / Gar) -8/Garrison (discovered 3 exits: *Mat x3) -8/Materials (discovered 3 exits: *Fac x2 / Gar) -8/Garrison (discovered 2 exits: *Mat x2) -8/Materials -7/Factory (discovered 6 exits: *Fac x4 / *Low x2) History --------- Turn | Location | Event 31 | -11/Scrapyard | Discovered new exit (range 16) 88 | -11/Scrapyard | Entered Materials 309 | -10/Materials | Build established: Mutant 349 | -10/Materials | Discovered new exit (range 11) 627 | -10/Materials | Discovered new exit (range 4) 705 | -10/Materials | Central database locked down 902 | -10/Materials | Discovered new exit (range 8) 1143 | -10/Materials | Discovered new exit (range 11) 1239 | -10/Materials | Entered Mines 1251 | -10/Mines | Assisted by bots powering up and referring to "LRC-V3" 1351 | -10/Mines | Learned Materials emergency access door positions 1401 | -10/Mines | Discovered new exit (range 7) 1419 | -10/Mines | Core integrity fell below 50% 1467 | -10/Mines | Received a Rocket Launcher from a helpful Derelict 1636 | -10/Mines | Discovered new exit (range 10) 1671 | -10/Mines | Discovered new exit (range 7) 1931 | -10/Mines | Entered Materials 1931 | -9/Materials | Accompanied by 3 allies 1931 | -9/Materials | Evolved 2 slots: Propulsion x1, Utility x1 2477 | -9/Materials | Discovered new exit (range 15) 2592 | -9/Materials | Discovered new exit (range 15) 2599 | -9/Materials | Build established: Scavenger-Mutant 2756 | -9/Materials | Central database locked down 2884 | -9/Materials | Discovered new exit (range 10) 3493 | -9/Materials | Identified exit to Materials 3493 | -9/Materials | Identified exit to Storage 3559 | -9/Materials | Learned Storage stockpile data 3663 | -9/Materials | Learned Storage garrison access intel 3698 | -9/Materials | Learned location of 1 exit from Storage 3722 | -9/Materials | Learned location of Mines (-9) 3735 | -9/Materials | Learned location of Mines (-8) 3789 | -9/Materials | Learned location of 1 exit from Storage 3832 | -9/Materials | Learned Storage trap positions 3863 | -9/Materials | Entered Mines 3863 | -9/Mines | Accompanied by 1 ally 3924 | -9/Mines | Assembled infested the area 3929 | -9/Mines | Assisted by a Guerilla fighting off Assembled 3986 | -9/Mines | Destroyed 7 combat bots 4019 | -9/Mines | Deemed a non-threat by the Exiles lab entrance 4019 | -9/Mines | Discovered new exit (range 5) 4061 | -9/Mines | Entered Exiles 4061 | -9/Exiles | Accompanied by 2 allies 4091 | -9/Exiles | Led the pair of lost Derelicts to a safe place 4109 | -9/Exiles | Met 8R-AWN 4135 | -9/Exiles | Met EX-HEX 4225 | -9/Exiles | Met EX-BIN 4247 | -9/Exiles | Aligned with FarCom system 4249 | -9/Exiles | Given EX-Vault access code 4353 | -9/Exiles | Opened EX-Vault 4361 | -9/Exiles | Found PSU Rigger 4397 | -9/Exiles | Warned to stay clear of 0b10 Research branches 4447 | -9/Exiles | Learned location of Zion (-6) 4448 | -9/Exiles | Met EX-DEC 4517 | -9/Exiles | Discovered new exit (range 14) 4539 | -9/Exiles | Left Exiles lab with PSU Rigger 4539 | -9/Exiles | Entered Mines 4960 | -8/Mines | Core integrity fell below 50% 5350 | -8/Mines | Discovered exit to Materials (range 5) 5387 | -8/Mines | Entered Materials 5387 | -8/Materials | Evolved 2 slots: Utility x2 5501 | -8/Materials | Lost 4 parts (1p2n1u) 5758 | -8/Materials | Build established: Mutant 6499 | -8/Materials | Discovered new exit (range 16) 6823 | -8/Materials | Discovered new exit (range 14) 6979 | -8/Materials | Build established: Scavenger-Mutant 7253 | -8/Materials | Garrison activated, responded to threat 8056 | -8/Materials | Learned Factory emergency access door positions 8131 | -8/Materials | Repaired Lgt. Treads 8197 | -8/Materials | Identified exit to Factory 8254 | -8/Materials | Learned location of 1 exit from Recycling 8339 | -8/Materials | Learned Factory emergency access door positions 8515 | -8/Materials | Learned location of 2 exits from Factory 8587 | -8/Materials | Learned location of 3 exits from Factory 8627 | -8/Materials | Identified exit to Garrison 8629 | -8/Materials | Entered Garrison 8739 | -8/Garrison | Phase Generator disabled 8793 | -8/Garrison | Triggered checkpoint 8838 | -8/Garrison | Garrison Relay disabled 8854 | -8/Garrison | Garrison Relay disabled 8985 | -8/Garrison | Triggered checkpoint 9302 | -8/Garrison | Discovered new exit (range 5) 9329 | -8/Garrison | Triggered checkpoint 9434 | -8/Garrison | Garrison Relay disabled 9486 | -8/Garrison | Discovered new exit (range 23) 9486 | -8/Garrison | Discovered new exit (range 26) 9486 | -8/Garrison | Discovered new exit (range 55) 9525 | -8/Garrison | Triggered checkpoint 9553 | -8/Garrison | Triggered checkpoint 9711 | -8/Garrison | Spotted B-75 Beast 9729 | -8/Garrison | Core integrity fell below 50% 9770 | -8/Garrison | Destroyed B-75 Beast 9800 | -8/Garrison | Lost 10 parts (1p4n3u2w) 9931 | -8/Garrison | Entered Materials 10059 | -8/Materials | Repaired Lgt. Treads 10274 | -8/Materials | Discovered exit to Factory (range 5) 10490 | -8/Materials | Build established: Mutant 10513 | -8/Materials | Repaired Broken Adv. Treads 10593 | -8/Materials | Repaired Broken Adv. Plasma Cannon 11987 | -8/Materials | Core integrity fell below 20% 12032 | -8/Materials | Repaired Hvy. Armor Plating 12114 | -8/Materials | Discovered exit to Factory (range 9) 12236 | -8/Materials | Identified exit to Garrison 12244 | -8/Materials | Entered Garrison 12362 | -8/Garrison | Triggered checkpoint 12638 | -8/Garrison | Triggered checkpoint 12997 | -8/Garrison | Garrison Relay disabled 13263 | -8/Garrison | Discovered new exit (range 14) 13459 | -8/Garrison | Discovered new exit (range 13) 13557 | -8/Garrison | Garrison Relay disabled 13700 | -8/Garrison | Phase Generator disabled 13733 | -8/Garrison | Entered Materials 14270 | -8/Materials | Repaired Adv. Plasma Cannon 14717 | -8/Materials | Discovered exit to Factory (range 20) 14810 | -8/Materials | Entered Factory 14810 | -7/Factory | Evolved 2 slots: Propulsion x1, Utility x1 14811 | -7/Factory | Identified exit to Factory 14811 | -7/Factory | Identified exit to Lower Caves 15002 | -7/Factory | Fabricated Imp. Antigrav System? 15155 | -7/Factory | Repaired Adv. Treads 16330 | -7/Factory | Fabricated Linear Gravjet? 16497 | -7/Factory | Fabricated Linear Gravjet? 16710 | -7/Factory | Fabricated Linear Gravjet? 16776 | -7/Factory | Repaired Hvy. Armor Plating 17239 | -7/Factory | Build established: Hacker-Mutant 17457 | -7/Factory | Learned location of Extension (-6) 17509 | -7/Factory | Learned location of 2 exits from Proximity Caves 17552 | -7/Factory | Learned 2 Extension zone layouts 17584 | -7/Factory | Learned Extension terminal intel 17615 | -7/Factory | Learned location of Warlord (-4) 17618 | -7/Factory | Learned 2 Upper Caves zone layouts 17629 | -7/Factory | Learned Factory emergency access door positions 17681 | -7/Factory | Learned 2 Upper Caves zone layouts 18135 | -7/Factory | Fabricated Adv. Treads? 18317 | -7/Factory | Fabricated Hvy. Armor Plating? 19618 | -7/Factory | Discovered exit to Lower Caves (range 15) 19621 | -7/Factory | System corruption reached 10% 19882 | -7/Factory | Crushed by falling debris 19889 | -7/Factory | Crushed by falling debris 19915 | -7/Factory | Self-destructed Last Messages --------------- 19862_ U-05 Engineer builds a Wall. 19865_ U-05 Engineer lays Concrete. 19873_ U-05 Engineer builds a Wall. 19882_ The unstable cave ceiling collapses. 19882_ Crushed by falling debris. 19882_ Adv. Treads destroyed. 19882_ System corrupted by crushing effect (+1). 19887_ System corrupted: Matter fused (-8). 19887_ U-05 Engineer builds a Wall. 19889_ The unstable cave ceiling collapses. 19889_ Crushed by falling debris. 19889_ Cld. Deuterium Engine destroyed. 19889_ System corrupted by crushing effect (+5). 19894_ O-16 Technician: "IFF HANDSHAKE FAILED. SECURING TERMINAL." 19895_ Connecting with Terminal... 19897_ ALERT: Hostiles spotted, dispatching reinforcements to Terminal F001. 19903_ System corrupted: Heat flow error (+299). 19914_ K-01 Serf cleans the Terminal. Map ----- +----------------------------------------------------+ | ??# #??##### / # #???? """ # ^^ #! | | ### ###????#/ # #??# """"" #^^^ ^# """ " | | # #????#######?######??# """"" # # """ " | | # "T #????????????????????# + + """ " | | "" #????????????????????# """ # # | | # #????????????????????# """"" # ######## | | # #????????????????????#] """"" # # | | ## ##??????????????????????? # # | | ?# #????????????????????????####### # ==[ | | ?# #??????????????????????????????# # ==[ | | ?# #??????????????????????????????# + =[ | | ## #??????????????????????????????# # | | # #??????????????????????????????# # [ | | # #######+#############??????????# # | | # ###????????# # | | # ???????? #####+## | | # ^ o k ???????? #???# #? | | ######+#########/### T """ ""????? """ #???#=## | | ### ## # """ """???? ??? ?####+## | | ### ## """ # """ """ ??????????# %%%* | | + + ** ## """ # ??? ??????# ""=! | | ###[[*=[ ## """ [# """ """ ??? ""????# """ | | ### ! ## # """ """ ""? """ ??# "F | | ### ## [ # """ """ """ """ # """ | | ## # ## + + "" | | ?# # ##"" ^# @ u # | | ?### ##"" # ##+####### ? # """" | | ??###########""T ! #######????????# ?? ?# """" | | ??#### ####"" #??????????????##??? #?# """" | | ?????######?#""" #??????????????????? ??# """" | | ????????????## #??????????????????????# | | ?????????????########??????????????????????####### | | ?????????????????????????????????????????????????? | | ?????????????????????????????????????????????????? | | ?????????????????????????????????????????????????? | | ?????????????????????????????????????????????????? | | ?????????????????????????????????????????????????? | | ??????????????????????????g???g??????????????????? | | ?????????????????????????????????????????????????? | | ?????????????????????????????????????????????????? | | ????????????????????????????????????????????????+? | | ?????????????????????????????????????????????????? | | ?????????????????????????????????????????????????? | | ?????????????????????????????????????????????????? | | ?????????????????????????????????????????????????? | | ???????????????